bitfinex/quotes_ETHUSD_20250526
["timestamp","ask_amount","ask_price","bid_price","bid_amount"]
[1748283694337,2.36565075,2536.3,2536.2,12.58719363]
[1748283695575,2.36565075,2536.3,2536.2,12.189]
[1748283695962,2.36593059,2536.0,2535.9,0.47185787]
[1748283696347,3.16683059,2536.0,2535.9,0.47185787]
[1748283696548,2.36593059,2536.0,2535.9,0.47185787]
[1748283697633,0.8009,2536.5,2535.9,8.47185787]
[1748283697749,3.16623369,2536.7,2536.4,8.0]
[1748283697950,5.70788893,2537.0,2536.4,8.0]
[1748283698183,2.36529896,2536.7,2536.5,4.18425375]
[1748283698383,2.36524078,2536.8,2536.6,8.0]
[1748283698761,2.36509125,2536.9,2536.8,8.0]
[1748283699682,2.36509125,2536.9,2536.6,3.94]
[1748283699683,2.36527166,2536.8,2536.6,3.94]
[1748283699887,2.36527772,2536.7,2536.6,3.94]
[1748283702186,2.36527772,2536.7,2536.6,8.15568695]
[1748283704858,2.36521795,2536.8,2536.6,8.15568695]
[1748283705897,2.36527772,2536.7,2536.6,8.15568695]
[1748283707501,2.36513534,2536.9,2536.6,8.15568695]
[1748283708098,2.36522206,2536.8,2536.6,8.15568695]
[1748283708818,2.36522206,2536.8,2536.6,4.21568695]
[1748283709026,2.36522206,2536.8,2536.7,3.94]
[1748283709622,2.36514823,2536.9,2536.8,8.0]
[1748283710925,2.36485585,2537.2,2536.8,8.0]
[1748283711124,2.3648116,2537.2,2536.8,8.0]
[1748283711331,2.36490481,2537.1,2536.8,8.0]
[1748283711707,2.36500476,2537.0,2536.8,8.0]
[1748283712585,2.36495667,2537.1,2536.8,8.0]
[1748283712924,2.3650207,2537.0,2536.8,8.0]
[1748283713290,2.3649561,2537.1,2536.8,8.0]
[1748283713812,3.12515638,2537.5,2537.0,8.0]
[1748283714605,3.49287353,2537.5,2537.0,8.0]
[1748283714810,2.36478147,2537.3,2537.2,8.0]
[1748283716432,2.36486401,2537.2,2537.0,11.94]
[1748283716602,2.36490481,2537.1,2537.0,11.94]
[1748283716997,2.36490481,2537.1,2537.0,16.15568695]
[1748283717628,2.36486316,2537.2,2537.0,16.15568695]
[1748283721260,2.36490481,2537.1,2537.0,16.15568695]
[1748283723268,2.3648658,2537.2,2537.0,16.15568695]
[1748283723596,2.36480978,2537.3,2537.0,16.15568695]
[1748283723795,2.36481863,2537.2,2537.0,16.15568695]
[1748283725381,2.36481863,2537.2,2537.0,12.21568695]
[1748283725588,2.36481863,2537.2,2537.0,16.15468695]
[1748283725761,2.36481863,2537.2,2537.1,4.18425375]
[1748283726678,2.36472715,2537.3,2537.2,8.0]
[1748283726999,0.8138,2537.7,2537.2,8.0]
[1748283727161,0.9138,2537.9,2537.5,4.18425375]
[1748283727358,0.9138,2537.9,2537.7,4.18425375]
[1748283727554,0.9138,2537.9,2537.5,4.18425375]
[1748283727756,2.36442264,2537.7,2537.5,4.18425375]
[1748283728343,2.36443883,2537.6,2537.5,12.18425375]
[1748283728689,2.36443883,2537.6,2537.5,8.0]
[1748283728874,3.17823883,2537.6,2537.5,8.0]
[1748283729072,2.36453201,2537.5,2537.4,4.68754482]
[1748283729452,2.36453201,2537.5,2537.4,4.21568695]
[1748283731795,2.36453642,2537.5,2537.3,4.18425375]
[1748283732000,2.36453642,2537.5,2537.4,8.0]
[1748283732595,0.8285,2537.8,2537.4,8.0]
[1748283732826,2.36438492,2537.7,2537.6,8.0]
[1748283734179,2.36438492,2537.7,2537.6,8.39344558]
[1748283735305,2.364328,2537.8,2537.6,8.39344558]
[1748283735617,2.46415934,2537.9,2537.8,8.0]
[1748283736410,2.3643289,2537.8,2537.5,4.18425375]
[1748283736616,2.3643289,2537.8,2537.5,4.65611162]
[1748283737296,0.1,2537.9,2537.6,8.0]
[1748283737632,2.36434566,2537.7,2537.6,11.939]
[1748283737978,2.36428629,2537.8,2537.6,11.939]
[1748283738397,0.1,2537.9,2537.6,11.939]
[1748283738985,2.46420389,2537.9,2537.6,11.939]
[1748283739185,2.36443883,2537.6,2537.5,0.47185787]
[1748283740241,2.36434566,2537.7,2537.2,8.47185787]
[1748283740528,2.3647184,2537.3,2537.2,8.47185787]
[1748283741587,2.3647184,2537.3,2537.2,8.0]
[1748283742225,2.3647184,2537.3,2537.2,0.3888565]
[1748283742403,2.3648116,2537.2,2537.1,0.47185787]
[1748283742603,2.3648116,2537.2,2536.9,8.47185787]
[1748283742604,2.36499802,2537.0,2536.9,8.47185787]
[1748283742919,2.36495489,2537.1,2536.9,8.47185787]
[1748283743321,0.7969,2537.4,2536.9,8.47185787]
[1748283743528,2.36499802,2537.0,2536.9,8.47185787]
[1748283745016,2.36496434,2537.1,2536.9,8.47185787]
[1748283745413,2.36499802,2537.0,2536.9,8.47185787]
[1748283745612,3.15119802,2537.0,2536.9,8.47185787]
[1748283745818,3.15119802,2537.0,2536.9,8.0]
[1748283746021,3.15119802,2537.0,2536.9,8.38889588]
[1748283746752,3.15119802,2537.0,2536.9,0.38889588]
[1748283747115,2.36509125,2536.9,2536.8,8.47185787]
[1748283748243,0.1,2537.9,2536.8,12.65611162]
[1748283748404,2.36494195,2537.1,2537.0,4.18425375]
[1748283749311,2.36483259,2537.2,2537.1,8.0]
[1748283749665,0.8061,2537.6,2537.1,8.0]
[1748283749951,0.8061,2537.6,2537.4,8.0]
[1748283750139,0.7635,2537.8,2537.4,8.0]
[1748283750325,3.12776941,2537.8,2537.4,8.0]
[1748283751236,4.44867742,2537.9,2537.4,8.0]
[1748283751452,2.08449595,2537.9,2537.5,8.3999407]
[1748283751669,2.08449595,2537.9,2537.6,8.0]
[1748283752672,2.08449595,2537.9,2537.6,11.94071908]
[1748283752834,0.1,2537.9,2537.6,12.41257695]
[1748283753030,0.1,2537.9,2537.8,11.94042083]
[1748283753425,0.1,2537.9,2537.8,16.15610778]
[1748283753627,0.1,2537.9,2537.8,16.70610778]
[1748283755971,0.1,2537.9,2537.8,25.23111649]
[1748283757277,0.1,2537.9,2537.8,25.85654158]
[1748283758275,0.1,2537.9,2537.8,12.84111204]
[1748283759546,2.46415934,2537.9,2537.8,4.84111204]
[1748283759746,2.46415934,2537.9,2537.8,12.21568695]
[1748283764399,2.46415934,2537.9,2537.8,8.0]
[1748283764715,3.938,2538.4,2537.9,11.94016658]
[1748283764716,0.781,2538.4,2537.9,11.94016658]
[1748283764868,3.14473813,2538.4,2538.0,8.0]
[1748283765067,2.36369499,2538.4,2538.2,8.0]
[1748283765266,0.781,2538.6,2538.2,8.40128839]
[1748283765467,2.36332125,2538.8,2538.4,16.52500871]
[1748283765789,2.36341637,2538.7,2538.5,8.0]
[1748283765994,2.36333578,2538.8,2538.5,8.0]
[1748283766166,2.46328005,2538.9,2538.5,8.0]
[1748283766369,2.46328005,2538.9,2538.5,15.8773237]
[1748283766568,0.1,2538.9,2538.5,12.13179689]
[1748283766769,2.36332136,2538.8,2538.5,12.13179689]
[1748283766970,2.36332136,2538.8,2538.5,11.938]
[1748283767269,2.36343613,2538.7,2538.5,8.0]
[1748283767511,2.36343613,2538.7,2538.5,11.938]
[1748283769827,0.1,2538.9,2538.5,11.938]
[1748283770119,2.4632631,2538.9,2538.5,11.938]
[1748283770354,2.36343128,2538.7,2538.5,16.15368695]
[1748283770834,2.36350744,2538.6,2538.5,16.15368695]
[1748283771032,2.36350744,2538.6,2538.5,12.21568695]
[1748283773534,0.1,2538.9,2538.5,12.21568695]
[1748283773535,2.36336203,2538.8,2538.5,12.21568695]
[1748283773916,2.46327052,2538.9,2538.5,12.21568695]
[1748283774333,2.36332151,2538.8,2538.5,12.21568695]
[1748283774750,2.46327282,2538.9,2538.5,12.21568695]
[1748283775034,2.36333782,2538.8,2538.5,12.21568695]
[1748283775244,2.46325014,2538.9,2538.5,12.21568695]
[1748283775806,2.36332183,2538.8,2538.5,12.21568695]
[1748283776101,2.46328393,2538.9,2538.7,8.0]
[1748283776306,2.36332125,2538.8,2538.7,8.0]
[1748283777008,2.46323298,2538.9,2538.7,8.0]
[1748283777232,2.36332125,2538.8,2538.7,8.0]
[1748283780449,0.1,2538.9,2538.7,11.937]
[1748283780757,2.46322816,2538.9,2538.8,8.0]
[1748283782249,3.12741434,2538.7,2538.6,0.46904136]
[1748283782457,3.92281273,2538.7,2538.6,0.46904136]
[1748283782753,1.55939839,2538.7,2538.2,13.05581381]
[1748283782970,2.36378678,2538.3,2538.2,12.65452542]
[1748283783464,2.36378678,2538.3,2538.2,13.05224507]
[1748283783669,2.36378678,2538.3,2538.2,12.58320371]
[1748283785774,3.13058678,2538.3,2538.2,0.39771965]
[1748283786068,3.13058678,2538.3,2538.1,8.0]
[1748283786069,2.36387991,2538.2,2538.1,8.0]
[1748283787385,3.937,2538.7,2538.1,8.0]
[1748283787675,2.36383833,2538.3,2538.2,4.18548406]
[1748283789483,0.7812,2538.5,2538.2,4.18548406]
[1748283789655,2.36378678,2538.3,2538.2,4.18548406]
[1748283790276,2.3637396,2538.4,2538.2,4.18548406]
[1748283790576,2.3637396,2538.4,2538.2,4.58343878]
[1748283790775,2.36378678,2538.3,2538.2,4.58343878]
[1748283792337,2.36374869,2538.4,2538.2,4.58343878]
[1748283792883,0.8302,2538.7,2538.3,8.0]
[1748283793290,2.36369366,2538.4,2538.3,8.0]
[1748283795292,0.1,2538.9,2538.3,16.15268695]
[1748283795502,2.46329301,2538.9,2538.8,12.18548406]
[1748283797301,2.46329301,2538.9,2538.8,8.0]
[1748283799793,0.7783,2538.8,2538.5,0.46904136]
[1748283799997,3.14180744,2538.6,2538.5,0.46904136]
[1748283801283,2.36378678,2538.3,2538.2,4.57495472]
[1748283801601,2.36378678,2538.3,2538.2,12.57495472]
[1748283802908,2.36378678,2538.3,2538.2,8.0]
[1748283803110,2.36406619,2538.0,2537.9,0.46904136]
[1748283803282,2.36406619,2538.0,2537.9,12.65452542]
[1748283804120,2.36406619,2538.0,2537.9,12.18548406]
[1748283811552,3.24211939,2538.0,2537.9,8.0]
[1748283811849,3.19314566,2537.7,2537.6,0.46904136]
[1748283812015,7.13014566,2537.7,2537.6,0.46904136]
[1748283812409,3.19314566,2537.7,2537.6,0.46904136]
[1748283812616,2.3646252,2537.4,2537.3,8.0]
[1748283813147,2.36456387,2537.5,2537.2,4.18548406]
[1748283813351,0.36769601,2537.7,2537.4,12.18548406]
[1748283813523,2.73204167,2537.7,2537.6,12.18548406]
[1748283814123,2.36434566,2537.7,2537.6,12.18548406]
[1748283815012,2.36434566,2537.7,2537.6,8.0]
[1748283819755,3.15864566,2537.7,2537.6,8.0]
[1748283819958,4.10473593,2537.7,2537.6,8.0]
[1748283821121,3.15864566,2537.7,2537.6,8.0]
[1748283822166,2.36413683,2538.0,2537.6,8.0]
[1748283822167,0.7834,2538.3,2537.6,8.0]
[1748283822335,2.36415934,2537.9,2537.8,12.18548406]
[1748283822723,2.36415934,2537.9,2537.8,8.0]
[1748283829863,3.13035934,2537.9,2537.8,8.0]
[1748283830643,2.36415934,2537.9,2537.8,8.0]
[1748283831974,2.36408633,2538.0,2537.9,8.0]
[1748283832278,2.36411607,2538.0,2537.8,4.18548406]
[1748283832574,2.36411607,2538.0,2537.9,8.0]
[1748283832880,2.36399476,2538.1,2537.9,8.0]
[1748283833573,2.36406619,2538.0,2537.9,8.0]
[1748283835192,2.3640071,2538.1,2537.9,8.0]
[1748283835555,2.36406619,2538.0,2537.9,8.0]
[1748283835947,2.36402807,2538.1,2537.9,8.0]
[1748283836446,0.8035,2538.4,2537.9,8.0]
[1748283836447,2.36406619,2538.0,2537.9,8.0]
[1748283840285,2.36406619,2538.0,2537.8,4.18548406]
[1748283840286,2.36418032,2537.9,2537.8,8.0]
[1748283843354,2.36418032,2537.9,2537.8,12.18548406]
[1748283850500,2.36392518,2538.2,2537.9,8.0]
[1748283850796,2.36378678,2538.3,2538.2,8.0]
[1748283851396,2.73251333,2538.3,2538.2,8.0]
[1748283851700,0.36872655,2538.3,2538.2,8.38508636]
[1748283851909,2.73251333,2538.3,2538.2,8.38508636]
[1748283852311,0.36872655,2538.3,2538.2,8.38508636]
[1748283852512,2.73251333,2538.3,2538.2,8.85412772]
[1748283853312,2.73251333,2538.3,2538.2,8.38508636]
[1748283853614,57.88516855,2538.1,2537.9,8.77911204]
[1748283853813,57.88516855,2538.1,2538.0,4.18548406]
[1748283855912,60.2491416,2538.1,2538.0,4.18548406]
[1748283856817,60.2491416,2538.1,2538.0,12.18548406]
[1748283857803,57.88516855,2538.1,2538.0,12.18548406]
[1748283858518,60.2491416,2538.1,2538.0,12.18548406]
[1748283858696,57.88516855,2538.1,2538.0,12.18548406]
[1748283861727,60.2491416,2538.1,2538.0,12.18548406]
[1748283861923,57.88516855,2538.1,2538.0,12.18548406]
[1748283862990,57.88516855,2538.1,2538.0,16.12559438]
[1748283863627,57.88516855,2538.1,2538.0,16.75101947]
[1748283866135,57.88516855,2538.1,2538.0,12.81090915]
[1748283867412,57.88516855,2538.1,2538.0,20.29448406]
[1748283867900,57.88516855,2538.1,2538.0,24.51017101]
[1748283868402,57.88516855,2538.1,2538.0,20.34128133]
[1748283868597,57.88516855,2538.1,2538.0,28.45028133]
[1748283868932,57.88516855,2538.1,2538.0,29.07570642]
[1748283870833,57.88516855,2538.1,2538.0,28.45028133]
[1748283872811,57.88516855,2538.1,2538.0,24.51328133]
[1748283873042,57.88516855,2538.1,2538.0,28.45028133]
[1748283873637,57.88516855,2538.1,2538.0,29.07826268]
[1748283875223,57.88516855,2538.1,2538.0,17.02915236]
[1748283875552,57.88516855,2538.1,2538.0,21.20115236]
[1748283875838,57.88516855,2538.1,2538.0,29.07826268]
[1748283876405,37.29519448,2538.1,2538.0,29.62826268]
[1748283876643,35.74699448,2538.1,2538.0,29.62826268]
[1748283876855,35.74699448,2538.1,2538.0,29.00028133]
[1748283877408,34.76299448,2538.1,2538.0,29.00028133]
[1748283877607,34.44549448,2538.1,2538.0,29.00028133]
[1748283878755,34.23329448,2538.1,2538.0,29.00028133]
[1748283879425,34.23329448,2538.1,2538.0,12.21568695]
[1748283879625,34.23329448,2538.1,2538.0,28.45028133]
[1748283880043,34.23329448,2538.1,2538.0,20.29448406]
[1748283880250,34.23329448,2538.1,2538.0,16.35748406]
[1748283880439,34.23329448,2538.1,2538.0,20.29448406]
[1748283881564,34.23329448,2538.1,2538.0,20.92308733]
[1748283881924,34.23329448,2538.1,2538.0,24.86319765]
[1748283882252,34.23329448,2538.1,2538.0,20.92308733]
[1748283882748,34.23329448,2538.1,2538.0,20.29448406]
[1748283885319,34.23329448,2538.1,2538.0,20.92320113]
[1748283885763,34.23329448,2538.1,2538.0,12.92320113]
[1748283886529,34.23329448,2538.1,2538.0,16.86331145]
[1748283887351,34.23329448,2538.1,2538.0,16.23459438]
[1748283890273,34.23329448,2538.1,2538.0,12.29448406]
[1748283891558,34.23329448,2538.1,2538.0,16.51017101]
[1748283892467,34.23329448,2538.1,2538.0,24.51017101]
[1748283894564,34.23329448,2538.1,2538.0,16.40117101]
[1748283894739,34.23329448,2538.1,2538.0,24.50817101]
[1748283895273,34.23329448,2538.1,2538.0,16.40117101]
[1748283895474,34.23329448,2538.1,2538.0,24.50817101]
[1748283904404,34.23329448,2538.1,2538.0,28.44828133]
[1748283907306,34.23329448,2538.1,2538.0,24.50817101]
[1748283908139,34.23329448,2538.1,2538.0,16.40117101]
[1748283908281,34.23329448,2538.1,2538.0,24.50817101]
[1748283909911,36.59726753,2538.1,2538.0,24.50817101]
[1748283910118,36.59726753,2538.1,2537.6,4.21568695]
[1748283910119,2.36434566,2537.7,2537.6,4.21568695]
[1748283910282,2.36443883,2537.6,2537.5,4.21568695]
[1748283910483,3.17588779,2537.7,2537.5,8.15268695]
[1748283910697,3.17588779,2537.7,2537.6,12.18548406]
[1748283911609,3.17588779,2537.7,2537.6,12.81468533]
[1748283912885,3.17588779,2537.7,2537.6,12.18548406]
[1748283915286,2.36424092,2537.9,2537.6,16.40117101]
[1748283915491,2.36424092,2537.9,2537.8,4.18548406]
[1748283915994,3.1518859,2538.0,2537.8,4.18548406]
[1748283915995,3.15191297,2538.0,2537.8,12.18548406]
[1748283916302,34.23329448,2538.1,2537.9,11.937]
[1748283916502,34.23329448,2538.1,2538.0,16.35548406]
[1748283918217,34.23329448,2538.1,2538.0,16.98468533]
[1748283921125,34.23329448,2538.1,2538.0,17.03037228]
[1748283921425,34.23329448,2538.1,2538.0,25.13737228]
[1748283927606,34.23329448,2538.1,2538.0,29.0774826]
[1748283927810,34.23329448,2538.1,2538.0,29.6274826]
[1748283928765,34.23329448,2538.1,2538.0,28.99828133]
[1748283929360,20.84029587,2538.1,2538.0,28.99828133]
[1748283929568,17.68202294,2538.1,2538.0,28.99828133]
[1748283929850,13.55107708,2538.1,2538.0,28.99828133]
[1748283930060,12.07662151,2538.1,2538.0,28.99828133]
[1748283930260,8.94814858,2538.1,2538.0,28.99828133]
[1748283930465,3.76741963,2538.1,2538.0,24.78259438]
[1748283930609,1.7989467,2538.1,2538.0,24.78259438]
[1748283931019,0.1,2538.9,2538.6,3.93908686]
[1748283931245,0.1,2538.9,2538.8,12.18548406]
[1748283933941,0.1,2538.9,2538.8,12.58189513]
[1748283935949,0.1,2538.9,2538.8,17.30189513]
[1748283936436,0.1,2538.9,2538.8,17.77158158]
[1748283937266,0.09843433,2538.9,2538.8,17.77158158]
[1748283940367,0.09843433,2538.9,2538.8,21.71045033]
[1748283942059,0.09843433,2538.9,2538.8,17.77158158]
[1748283942253,0.09843433,2538.9,2538.8,25.64645033]
[1748283943550,0.09843433,2538.9,2538.8,25.17676388]
[1748283951985,0.09843433,2538.9,2538.8,25.80329041]
[1748283955355,0.09843433,2538.9,2538.8,25.17676388]
[1748283962004,0.09843433,2538.9,2538.8,25.72676388]
[1748283962221,0.7662,2539.4,2538.9,8.55]
[1748283962520,0.7662,2539.4,2538.8,21.91224794]
[1748283962521,0.7662,2539.4,2539.3,12.18548406]
[1748283962701,0.7662,2539.4,2539.3,20.84148406]
[1748283963385,0.7903,2539.6,2539.3,20.84148406]
[1748283963708,0.7903,2539.8,2539.5,12.18548406]
[1748283963919,0.1,2539.9,2539.7,12.18548406]
[1748283964125,0.1,2539.9,2539.8,11.93731789]
[1748283964688,0.1,2539.9,2539.8,8.0]
[1748283965369,0.1,2539.9,2539.8,12.72]
[1748283965796,0.1,2539.9,2539.8,16.65731789]
[1748283966768,0.1,2539.9,2539.8,17.28486804]
[1748283967173,0.1,2539.9,2539.8,17.83486804]
[1748283967407,1.98449595,2540.4,2540.3,3.93654292]
[1748283967592,1.98449595,2540.4,2540.3,24.21902698]
[1748283967909,0.66666667,2541.0,2540.6,3.93607809]
[1748283968070,0.66666667,2541.0,2540.9,8.0]
[1748283968499,0.66666667,2541.0,2540.9,11.93561336]
[1748283969919,0.66666667,2541.0,2540.9,8.0]
[1748283970397,1.98242447,2541.2,2540.9,11.93558787]
[1748283970597,1.98242447,2541.2,2541.1,12.18548406]
[1748283970811,1.98242447,2541.2,2541.1,16.11948406]
[1748283972829,4.34351371,2541.2,2541.1,16.11948406]
[1748283973188,2.36108924,2541.2,2541.1,16.11948406]
[1748283973426,2.3610078,2541.3,2541.1,16.11948406]
[1748283973724,2.36108924,2541.2,2541.1,16.11948406]
[1748283973927,2.36108924,2541.2,2541.1,16.51485448]
[1748283974596,3.61049031,2541.2,2541.1,0.39537042]
[1748283974798,1.24940107,2541.2,2541.1,4.18548406]
[1748283974995,3.13828924,2541.2,2541.1,12.18548406]
[1748283975989,3.13828924,2541.2,2541.1,12.57175268]
[1748283976832,0.7772,2541.2,2541.1,16.50475268]
[1748283977034,0.1,2541.9,2541.1,16.50475268]
[1748283977035,0.6945,2541.7,2541.2,3.93514874]
[1748283977373,0.1,2541.9,2541.1,16.50475268]
[1748283977374,0.1,2541.9,2541.7,8.0]
[1748283977649,0.1,2541.9,2541.6,8.11994223]
[1748283977650,0.1,2541.9,2541.8,12.18548406]
[1748283978394,2.46043904,2541.9,2541.8,12.18548406]
[1748283979910,2.46043904,2541.9,2541.8,20.27848406]
[1748283980096,3.26493904,2541.9,2541.8,20.27848406]
[1748283980530,3.82746893,2541.9,2541.8,8.0]
[1748283980751,0.8045,2541.5,2541.3,4.16]
[1748283980936,3.16531054,2541.5,2541.4,12.18548406]
[1748283981440,0.8045,2541.5,2541.4,12.18548406]
[1748283981737,3.16531054,2541.5,2541.4,12.18548406]
[1748283983051,3.16531054,2541.5,2541.4,8.0]
[1748283983348,3.16531054,2541.5,2541.4,11.933]
[1748283985352,2.36090343,2541.4,2541.3,16.088]
[1748283986057,2.36090343,2541.4,2541.3,12.156]
[1748283987858,0.8312,2541.8,2541.3,12.156]
[1748283988018,0.8312,2541.8,2541.7,12.18548406]
[1748283988223,0.1,2541.9,2541.8,8.0]
[1748283988438,2.46043904,2541.9,2541.8,8.0]
[1748283988658,2.36053909,2541.8,2541.5,3.932]
[1748283988819,2.36053909,2541.8,2541.6,8.0]
[1748283989020,2.36062477,2541.7,2541.6,8.0]
[1748283990519,3.67394096,2541.7,2541.6,8.0]
[1748283995150,2.36081054,2541.5,2541.4,8.088]
[1748283996060,2.36081054,2541.5,2541.4,4.156]
[1748283996858,2.36053713,2541.8,2541.4,4.156]
[1748283996859,2.3605319,2541.8,2541.4,4.156]
[1748283997065,2.36068206,2541.7,2541.5,4.18548406]
[1748283997268,2.36071765,2541.6,2541.5,8.0]
[1748283997448,0.8698,2541.9,2541.6,8.0]
[1748283997623,0.1,2541.9,2541.8,8.0]
[1748283998447,0.1,2541.9,2541.8,8.46849069]
[1748283999066,0.1,2541.9,2541.8,12.40271053]
[1748283999236,0.1,2541.9,2541.8,8.46849069]
[1748284000456,0.1,2541.9,2541.8,12.40271053]
[1748284000668,0.1,2541.9,2541.8,11.93421984]
[1748284001265,0.1,2541.9,2541.8,12.48421984]
[1748284005561,0.1,2541.9,2541.8,20.27148406]
[1748284006063,2.46050002,2541.9,2541.8,4.77906416]
[1748284006270,2.94258529,2541.9,2541.8,8.71006416]
[1748284006643,0.1,2541.9,2541.8,20.89554822]
[1748284007273,0.1,2541.9,2541.8,20.73967908]
[1748284008044,0.1,2541.9,2541.8,16.80867908]
[1748284008247,0.1,2541.9,2541.8,20.73967908]
[1748284008682,0.1,2541.9,2541.8,20.27148406]
[1748284010158,0.1,2541.9,2541.8,24.2057039]
[1748284010356,0.1,2541.9,2541.8,24.67389892]
[1748284010603,0.1,2541.9,2541.8,20.73967908]
[1748284010751,0.1,2541.9,2541.8,24.67389892]
[1748284011385,0.1,2541.9,2541.8,29.94389892]
[1748284011585,0.1,2541.9,2541.8,29.4757039]
[1748284014586,0.1,2541.9,2541.8,21.3897039]
[1748284014790,0.1,2541.9,2541.8,29.4757039]
[1748284014950,3.1118319,2541.8,2541.7,0.62406416]
[1748284015156,3.66906458,2541.8,2541.7,0.62406416]
[1748284015596,1.30853268,2541.8,2541.3,8.46836094]
[1748284015796,2.36063992,2541.7,2541.3,8.46836094]
[1748284015993,3.11186424,2541.8,2541.3,8.46836094]
[1748284016203,2.36071089,2541.7,2541.3,8.46836094]
[1748284016355,2.36072637,2541.6,2541.3,8.46836094]
[1748284016555,2.36067753,2541.7,2541.3,8.46836094]
[1748284016889,2.3606785,2541.7,2541.3,8.46836094]
[1748284017096,2.3606658,2541.7,2541.3,8.46836094]
[1748284017473,2.3606658,2541.7,2541.5,8.0]
[1748284017870,2.36071765,2541.6,2541.5,8.0]
[1748284018483,2.36067314,2541.7,2541.5,8.0]
[1748284018900,2.36071765,2541.6,2541.5,8.0]
[1748284019080,2.36066835,2541.7,2541.5,8.0]
[1748284019394,3.1118723,2541.8,2541.5,8.0]
[1748284019603,2.36062477,2541.7,2541.5,8.0]
[1748284020360,2.36071765,2541.6,2541.5,8.0]
[1748284021399,2.36067731,2541.7,2541.5,8.0]
[1748284021896,0.7513,2541.8,2541.5,8.0]
[1748284022117,3.11187578,2541.8,2541.5,8.0]
[1748284022602,0.7513,2541.8,2541.5,8.0]
[1748284022810,3.11183625,2541.8,2541.5,8.0]
[1748284023226,0.1,2541.9,2541.5,11.93468087]
[1748284023373,0.1,2541.9,2541.8,12.18548406]
[1748284023572,0.1,2541.9,2541.8,20.28748406]
[1748284024286,0.1,2541.9,2541.8,20.755845]
[1748284025321,0.1,2541.9,2541.8,20.28748406]
[1748284025915,0.1,2541.9,2541.8,12.28748406]
[1748284027308,0.1,2541.9,2541.8,16.2217039]
[1748284027771,0.1,2541.9,2541.8,12.28748406]
[1748284027977,0.1,2541.9,2541.8,16.2217039]
[1748284028686,0.1,2541.9,2541.8,24.2217039]
[1748284030481,0.1,2541.9,2541.8,24.84576806]
[1748284033510,0.1,2541.9,2541.8,29.56576806]
[1748284035216,0.1,2541.9,2541.8,30.11576806]
[1748284036334,0.1,2541.9,2541.8,29.4917039]
[1748284038815,0.1,2541.9,2541.8,30.11651851]
[1748284039033,0.1,2541.9,2541.8,25.63229867]
[1748284039200,0.1,2541.9,2541.8,29.56651851]
[1748284039388,0.1,2541.9,2541.8,25.63229867]
[1748284039720,0.1,2541.9,2541.8,29.56651851]
[1748284040116,0.1,2541.9,2541.8,21.46451851]
[1748284040323,0.1,2541.9,2541.8,29.56551851]
[1748284041615,0.1,2541.9,2541.8,25.63129867]
[1748284041924,0.1,2541.9,2541.8,29.56551851]
[1748284042118,0.1,2541.9,2541.8,21.46451851]
[1748284042520,0.1,2541.9,2541.8,29.56551851]
[1748284042820,0.1,2541.9,2541.8,5.34481461]
[1748284042821,2.46043904,2541.9,2541.8,5.34481461]
[1748284043022,2.46043904,2541.9,2541.8,17.51481461]
[1748284043719,2.46043904,2541.9,2541.8,12.79481461]
[1748284043720,3.25173904,2541.9,2541.8,12.79481461]
[1748284043881,3.25173904,2541.9,2541.8,12.17]
[1748284046388,3.8129532,2541.9,2541.8,4.17]
[1748284047446,3.25173904,2541.9,2541.8,4.17]
[1748284050087,0.8913,2541.9,2541.8,4.17]
[1748284050294,0.04691921,2541.9,2541.8,8.35548406]
[1748284050490,3.15200172,2542.2,2541.8,8.35548406]
[1748284050797,3.15200172,2542.2,2541.8,8.8241143]
[1748284051024,2.36028935,2542.1,2541.8,8.8241143]
[1748284051511,2.36035197,2542.0,2541.8,8.8241143]
[1748284051709,2.36035197,2542.0,2541.9,0.46863024]
[1748284051912,2.36035197,2542.0,2541.9,16.55263024]
[1748284052927,2.36035197,2542.0,2541.9,16.084]
[1748284055899,2.36035197,2542.0,2541.9,8.0]
[1748284056128,3.13555197,2542.0,2541.9,12.153]
[1748284056319,3.68513429,2542.0,2541.9,8.0]
[1748284056994,3.13555197,2542.0,2541.9,8.0]
[1748284062561,2.36030467,2542.1,2541.9,8.0]
[1748284062723,2.36034618,2542.0,2541.9,8.0]
[1748284063741,2.36030863,2542.1,2541.9,8.0]
[1748284063945,2.36034618,2542.0,2541.9,8.0]
[1748284064823,2.36034618,2542.0,2541.9,8.46863024]
[1748284066847,2.36034618,2542.0,2541.9,8.0]
[1748284071747,2.3605319,2541.8,2541.7,16.55263024]
[1748284076818,2.3605319,2541.8,2541.7,8.46863024]
[1748284077116,2.3605319,2541.8,2541.7,16.55263024]
[1748284080777,3.69661049,2541.8,2541.7,0.46863024]
[1748284081269,2.72878312,2541.8,2541.7,8.46863024]
[1748284081472,0.36825122,2541.8,2541.7,8.46863024]
[1748284081974,2.72878312,2541.8,2541.7,8.46863024]
[1748284082116,2.3605319,2541.8,2541.7,8.46863024]
[1748284082416,2.36049096,2541.9,2541.7,8.46863024]
[1748284082855,2.3605319,2541.8,2541.7,8.46863024]
[1748284083665,2.36049184,2541.9,2541.7,8.46863024]
[1748284084439,2.36043904,2541.9,2541.7,8.46863024]
[1748284084959,2.36043904,2541.9,2541.8,12.18548406]
[1748284085571,2.36043904,2541.9,2541.8,12.6541143]
[1748284090171,2.36043904,2541.9,2541.8,16.5851143]
[1748284090384,0.7568,2542.6,2541.9,8.0]
[1748284090541,2.3600526,2542.4,2542.3,4.18548406]
[1748284090751,2.3599494,2542.5,2542.4,8.0]
[1748284090952,2.3599494,2542.5,2542.4,12.152]
[1748284092529,2.3599494,2542.5,2542.4,12.53741961]
[1748284097241,3.16996062,2542.8,2542.4,12.53741961]
[1748284097446,3.16996476,2542.8,2542.7,12.18548406]
[1748284097847,3.16996476,2542.8,2542.7,8.0]
[1748284106088,2.359882,2542.5,2542.4,4.53541961]
[1748284106250,2.359882,2542.5,2542.4,16.081]
[1748284106680,2.359882,2542.5,2542.4,8.0]
[1748284107354,2.359882,2542.5,2542.4,8.38887643]
[1748284107551,2.359882,2542.5,2542.4,8.0]
[1748284107753,2.36025333,2542.1,2542.0,0.46863024]
[1748284108090,2.36025333,2542.1,2542.0,16.54963024]
[1748284108597,2.36025333,2542.1,2542.0,16.081]
[1748284110388,2.36025333,2542.1,2542.0,8.0]